Cogmind - Beta 17 @@@ ROGUE MODE // 2026.07.17 @ 17:43:28 Player: Suffixing Result: Destroyed by LJ-6LP(R) with Subdweller Laser Performance ------------- Evolutions (0) 0 Regions Visited (2) 400 Robots Destroyed (18) 90 Value Destroyed (543) 543 Prototype IDs (0) 0 Alien Tech Used (0) 0 Bonus (0) 0 TOTAL SCORE: 1033 Bonus ------- None Cogmind --------- Core Integrity 0/250 Matter 300/300 Energy 250/250 System Corruption 0% Temperature Cool (6) Movement Treading (320) Ox2 Location -10/Subcaves Parts ------- > --- POWER (1) -------- Ion Engine > --- PROPULSION (2) --- Light Treads > --- UTILITY (2) ------ High-capacity Storage Unit > --- WEAPON (2) ------- Battle Cannon Makeshift Spear > --- INVENTORY (20) --- Ion Engine Ion Engine Ion Engine Subdweller Power Source Subdweller Power Source Wheel Subdweller Monowheel Improved Heat Sink Large Storage Unit Heavy Riot Gun Assault Rifle Assault Rifle Assault Rifle Assault Rifle Assault Rifle Assault Rifle Assault Rifle Barrage Gun Heavy Battle Rifle Subdweller Shrapnel Launcher Peak State ------------ > --- POWER ------------ Ion Engine > --- PROPULSION ------- Light Treads Light Treads > --- UTILITY ---------- High-capacity Storage Unit Seismic Detector > --- WEAPON ----------- Heavy Battle Rifle Makeshift Spear > --- INVENTORY -------- Ion Engine Ion Engine Ion Engine Subdweller Power Source Subdweller Power Source Light Treads Light Treads Wheel Improved Heat Sink Large Storage Unit Heavy Riot Gun Assault Rifle Assault Rifle Assault Rifle Assault Rifle Assault Rifle Assault Rifle Assault Rifle Barrage Gun Subdweller Shrapnel Launcher [Rating: 16] Favorites ----------- Power Ion Engine Engine Ion Engine Propulsion Light Treads Treads Light Treads Leg Aluminum Leg Wheel Wheel Utility High-capacity Storage Unit Device Seismic Detector Storage High-capacity Storage Unit Protection Light Armor Plating Weapon Assault Rifle Ballistic Gun Assault Rifle Ballistic Cannon Battle Cannon Piercing Weapon Makeshift Spear Build | -11 -10 -10 ------- Run | Yrd Mat Sub Slots Evolved . | . . . Power . | . . . Propulsion . | . . . Utility . | . . . Weapon . | . . . Parts Attached 17 | 2 4 11 Power 1 | . 1 . Engine 1 | . 1 . Core . | . . . Reactor . | . . . Propulsion 5 | 2 . 3 Treads 4 | 2 . 2 Leg . | . . . Wheel 1 | . . 1 Hover . | . . . Flight . | . . . Utility 4 | . 3 1 Device 1 | . . 1 Storage 2 | . 2 . Processor . | . . . Hackware . | . . . Protection 1 | . 1 . Artifact . | . . . Weapon 7 | . . 7 Energy Gun . | . . . Energy Cannon . | . . . Ballistic Gun 5 | . . 5 Ballistic Cannon 1 | . . 1 Launcher . | . . . Special Weapon . | . . . Impact Weapon . | . . . Slashing Weapon . | . . . Piercing Weapon 1 | . . 1 Special Melee Weapon . | . . . Unidentified Prototypes . | . . . Parts Lost 5 | . . 5 Power . | . . . Propulsion 3 | . . 3 Utility 2 | . . 2 Weapon . | . . . Highest Loss Streak 1 | . . 1 To Critical Strikes . | . . . Average Backups 17 | 3 13 19 Power 4 | 1 3 5 Propulsion 2 | 2 2 2 Utility 1 | . 1 2 Weapon 8 | . 6 10 Tool/Special . | . . . Unused Backups 28 | . 7 21 Power 11 | . 2 9 Propulsion 1 | . . 1 Utility 4 | . 3 1 Weapon 12 | . 2 10 Tool/Special . | . . . Average Slot Usage (%) 93 | . 98 91 Engine 14 | . 14 14 Treads 27 | . 28 27 Device 3 | . . 4 Storage 14 | . 14 14 Protection 4 | . 12 1 Ballistic Gun 20 | . 28 16 Ballistic Cannon 4 | . . 6 Piercing Weapon 2 | . . 4 Peak Build Rating 16 | 6 9 16 Average Rating 10 | 6 8 11 On Entrance 7 | 6 6 9 Avg Prop Armor Cover (%) . | . . . Naked Turns . | . . . Heaviest Build 53 | 14 52 53 Greatest Support 40 | 40 40 40 Greatest Overweight (x) 2 | . 1 2 Average Overweight (x) . | . . 1 Largest Inventory Capacity 20 | 8 20 20 Average Capacity 18 | 8 16 20 Most Carried 20 | 5 20 20 Average Carried 17 | 2 13 19 Final Capacity 20 | 8 20 20 Final Carried 20 | 2 20 20 Class Distribution -------------------- 100% | Mutant Dominant Class ---------------- Mutant | -10/Materials Mutant | -10/Subcaves Resources | -11 -10 -10 ----------- Run | Yrd Mat Sub Matter Collected 784 | 220 220 344 Remotely . | . . . Salvage Created 752 | . 316 436 Parts 55 | . 22 33 Haulers Intercepted 2 | . 2 . Recyclers Shooed . | . . . Parts Field Recycled . | . . . Retrieved Matter . | . . . Parts Self-Destructed 12 | . . 12 Prevented . | . . . Parts Restored . | . . . Kills | -11 -10 -10 ------- Run | Yrd Mat Sub Combat Hostiles Destroyed 16 | . 7 9 Melee 2 | . . 2 Guns 14 | . 7 7 Classes Destroyed 5 | . 3 2 Hauler 2 | . 2 . Swarmer 3 | . 3 . Grunt 4 | . 4 . Artisan 1 | . . 1 Subdweller 9 | . . 9 Best Kill Streak 3 | . 3 2 Combat Bots Only 3 | . 3 2 Max Kills in Single Turn 1 | . 1 1 Gunslinging . | . . . Exploded . | . . . Melee 1 | . . 1 Uniques/NPCs Destroyed . | . . . Combat | -11 -10 -10 -------- Run | Yrd Mat Sub Hostile Shots Fired 94 | . 31 63 Missed 23 | . 8 15 Hits 71 | . 23 48 Projectile 71 | . 23 48 Critical Strikes 2 | . 1 1 Damage Taken 1351 | . 285 1066 Core 257 | . 61 196 Absorbed by Shields . | . . . Core Remaining (%) 100 | 100 . . Volleys Fired 65 | . 30 35 Largest 2 | . 2 2 Hottest 61 | . 40 61 Shots Fired 130 | . 60 70 Gun 130 | . 60 70 Cannon . | . . . Launcher . | . . . Special . | . . . Kinetic 130 | . 60 70 Thermal . | . . . Explosive . | . . . Electromagnetic . | . . . Robot Hit Streak 16 | . 13 16 Robot Miss Streak 2 | . 2 2 Penetration Max . | . . . Secondary Targets 2 | . . 2 Max Gunslinging Chain 1 | . . 1 Shots Hit Robots 97 | . 39 58 Core Hits 38 | . 17 21 Critical Kills . | . . . Critical Parts Destroyed 1 | . 1 . Critical Strikes 1 | . 1 . Destroy 1 | . 1 . Melee Attacks 19 | . . 19 Impact . | . . . Slashing . | . . . Piercing 19 | . . 19 Sneak Attacks 2 | . . 2 Combat Hostiles . | . . . Follow-up Attacks . | . . . Damage Inflicted 1515 | . 487 1028 Guns 1274 | . 479 795 Cannons . | . . . Explosions . | . . . Melee 233 | . . 233 Ramming 8 | . 8 . Kinetic 1274 | . 479 795 Thermal . | . . . Explosive . | . . . Electromagnetic . | . . . Impact . | . . . Slashing . | . . . Piercing 233 | . . 233 Highest Corruption . | . . . Average Corruption . | . . . Corruption Purged . | . . . Corruption Blocked . | . . . Overload Shots . | . . . Overflow Damage . | . . . Projectiles . | . . . Explosions . | . . . Melee . | . . . Knockbacks . | . . . Impact . | . . . Kinetic . | . . . Secondary . | . . . Self-Inflicted Damage . | . . . Shots . | . . . Rammed 2 | . 2 . Targets Rammed 2 | . 2 . Kicked . | . . . Crushed . | . . . Highest Temperature 26 | . 26 2 Average Temperature 6 | . 7 2 Received Heat Transfer 330 | . 153 177 Siege Activations . | . . . Martial Activations . | . . . Shielding Activations . | . . . Robots Disrupted . | . . . Combat Hostiles . | . . . Robots Corrupted . | . . . Combat Hostiles . | . . . Parts Fried . | . . . Impact Corruptions . | . . . Robots Melted . | . . . Combat Hostiles . | . . . Parts Melted 1 | . . 1 Heat Transferred . | . . . Parts Sabotaged . | . . . Parts Stolen . | . . . Parts Stripped . | . . . Power Chain Reactions . | . . . Alert | -11 -10 -10 ------- Run | Yrd Mat Sub Maximum Alert Level . | . . . Low Security (%) 100 | 100 100 . Level 1 . | . . . Level 2 . | . . . Level 3 . | . . . Level 4 . | . . . Level 5 . | . . . High Security . | . . . Max Security . | . . . Peak Influence 61 | . 61 . Initial . | . . . Average 11 | . 12 . Influence Increases 185 | . 185 . Destroy 0b10 Robot/C 140 | . 140 . Destroy 0b10 Robot/NC 10 | . 10 . Destroy Leader 34 | . 34 . Destroy Structure 1 | . 1 . Influence Decreases 185 | . 167 18 Entered New Map 10 | . . 10 Time Decay 175 | . 167 8 Squads Dispatched 1 | . 1 . Investigation . | . . . Extermination . | . . . Reinforcement 1 | . 1 . Assault . | . . . Garrison . | . . . Intercept . | . . . Searches Triggered . | . . . Construction Impeded . | . . . Haulers Reinforced . | . . . Active Scanning Responses . | . . . Cargo Convoy Interrupts . | . . . Stealth | -11 -10 -10 --------- Run | Yrd Mat Sub Distress Signals 1 | . 1 . Communications Jammed . | . . . Distress Signals . | . . . Times Spotted 25 | . 15 10 Peak Tracking Total 4 | . 4 2 Tactical Retreats . | . . . Traps | -11 -10 -10 ------- Run | Yrd Mat Sub Traps Triggered 1 | . . 1 Indirectly . | . . . Trap Hack Attempts . | . . . Triggered . | . . . Disarmed . | . . . Reprogrammed . | . . . Reused . | . . . Traps Extracted . | . . . Installed . | . . . Triggered . | . . . Machines | -11 -10 -10 ---------- Run | Yrd Mat Sub Machines Disabled . | . . . Max in Single Turn . | . . . Machines Repaired . | . . . Machines Dismantled . | . . . Machines Sabotaged . | . . . Overloaded Fab Kills . | . . . Hacking | -11 -10 -10 --------- Run | Yrd Mat Sub Machines Accessed . | . . . Terminals . | . . . Fabricators . | . . . Repair Stations . | . . . Recycling Units . | . . . Scanalyzers . | . . . Garrison Access . | . . . Total Hacks . | . . . Successful . | . . . Failed . | . . . Catastrophic . | . . . Database Lockouts . | . . . Manual . | . . . Terminals . | . . . Fabricators . | . . . Repair Stations . | . . . Recycling Units . | . . . Scanalyzers . | . . . Garrison Access . | . . . Terminal Hacks . | . . . Fabricator Hacks . | . . . Repair Station Hacks . | . . . Recycling Unit Hacks . | . . . Scanalyzer . | . . . Garrison Access Hacks . | . . . Unauthorized Hacks . | . . . Terminals . | . . . Fabricators . | . . . Repair Stations . | . . . Recycling Units . | . . . Scanalyzers . | . . . Garrison Access . | . . . Data Cores Recovered . | . . . Used . | . . . Hacking Detections . | . . . Full Trace Events . | . . . Feedback Events . | . . . Feedback Blocked . | . . . Robot Schematics Acquired . | . . . Robots Built . | . . . Authchips . | . . . Time . | . . . Total Robot Build Rating . | . . . Part Schematics Acquired . | . . . Parts Built . | . . . Authchips . | . . . Time . | . . . Total Part Build Rating . | . . . Part Studies Acquired . | . . . Parts Repaired . | . . . Time . | . . . Parts Recycled . | . . . Recycled Matter . | . . . Retrieved Matter . | . . . Retrieved Components . | . . . Parts Scanalyzed . | . . . Part Schematics Acquired . | . . . Parts Damaged . | . . . Bothacking | -11 -10 -10 ------------ Run | Yrd Mat Sub Used RIF Installer . | . . . Robots Hacked . | . . . Non-combat . | . . . Combat . | . . . Robot Hacks Applied . | . . . Relay Couplers Released . | . . . Fabnet Peak Effective % . | . . . Robots Rewired . | . . . Allies Hacked . | . . . Hacks Repelled . | . . . Allies | -11 -10 -10 -------- Run | Yrd Mat Sub Total Allies . | . . . Largest Group . | . . . Highest-Rated Group . | . . . Highest-Rated Ally . | . . . Total Orders . | . . . Ally Attacks . | . . . Total Damage . | . . . Kills . | . . . Allies Corrupted . | . . . Allies Melted . | . . . Intel | -11 -10 -10 ------- Run | Yrd Mat Sub Active Infowar (turns) 660 | . . 660 Seismic 660 | . . 660 Robot Analysis Total . | . . . Derelict Logs Recovered . | . . . Drone Launches . | . . . Drone Recoveries . | . . . Exploration | -11 -10 -10 ------------- Run | Yrd Mat Sub Turns Passed 2643 | 26 773 1844 Spaces Moved 1004 | 14 318 672 Core . | . . . Treads 1004 | 14 318 672 Legs . | . . . Wheels . | . . . Hover . | . . . Flight . | . . . Fastest Speed 160 | 160 160 240 Average Speed 225 | 160 198 240 Slowest Speed 320 | 160 240 320 Overloaded Moves . | . . . Propulsion Burnouts . | . . . Robots Hopped . | . . . Potential Cave-ins . | . . . Cave-ins Triggered . | . . . Exploration Rate (%) 26 | 3 44 32 Regions Visited 2 Branch Regions 1 Pre-discovered Areas . | . . . Known Exits Taken . | . . . Unknown Exits Taken 2 | 1 1 . Scrap Searched 4 | . . 4 Spaces Dug . | . . . Terrain Destroyed . | . . . Melee . | . . . Projectile . | . . . AOE . | . . . Terrain Rammed . | . . . Walls Destroyed . | . . . Machines Disabled . | . . . Actions | -11 -10 -10 --------- Run | Yrd Mat Sub Total 1234 | 19 400 815 Wait 76 | . 19 57 Move 1002 | 13 317 672 Hop . | . . . Pick Up 33 | . 23 10 Fast Attach 1 | . . 1 Attach 4 | . 1 3 Detach 1 | . . 1 Swap 14 | 2 3 9 Drop 17 | 4 5 8 Fire 65 | . 30 35 Melee 19 | . . 19 Ram . | . . . Kick . | . . . Crush 2 | . 2 . Escape Stasis . | . . . Rewire . | . . . Trap . | . . . Miscellaneous . | . . . Route ------- -11/Scrapyard -10/Materials (discovered 4 exits: [*Mat] / [*Min x2] / [*Sub]) -10/Subcaves History --------- Turn | Location | Event 7 | -11/Scrapyard | Discovered new exit (range 3) 27 | -11/Scrapyard | Entered Materials 31 | -10/Materials | Discovered new exit (range 12) 216 | -10/Materials | Discovered new exit (range 16) 309 | -10/Materials | Build established: Mutant 423 | -10/Materials | Discovered new exit (range 16) 776 | -10/Materials | Discovered new exit (range 11) 800 | -10/Materials | Entered Subcaves 801 | -10/Subcaves | Approached by a straggling Scientist 1527 | -10/Subcaves | Ambushed by Subdwellers from Twisted Machinery 1658 | -10/Subcaves | Core integrity fell below 50% 2547 | -10/Subcaves | Core integrity fell below 20% 2595 | -10/Subcaves | Shifting Twisted Machinery released Sub. Machine Gun 2605 | -10/Subcaves | Shifting Twisted Machinery released Riot Gun 2644 | -10/Subcaves | Destroyed by LJ-6LP(R) with Subdweller Laser Last Messages --------------- 01728_ Acquired Battle Cannon. 01740_ Acquired 25 matter. 01764_ Subatomizers dissect the Sub. Monowheel. 01943_ Triggered Piercing Trap. 01943_ Spikes shoot up from the floor. 01943_ Critical hit (Impale). 01960_ Acquired 8 matter. 02161_ Sneak attack on A1-4JS(u). 02161_ A1-4JS(u) cries out in pain. [Achievement: Art Critic] 02161_ A1-4JS(u) destroyed. 02163_ Acquired 10 matter. 02530_ ZV-93L(R): "MADSUB!" 02549_ ZV-93L(R) destroyed. Sub. Machine Gun falls loose from the Twisted Machinery. Riot Gun falls loose from the Twisted Machinery. 02633_ Lgt. Treads destroyed. 02639_ O5-0BH(R) destroyed. Map ----- +----------------------------------------------------+ | = #???###????? | | [%& ## ## #### #????? | | ##&* # # ###### ## #????? | | ### ########????## ###### #????? | | ### # #?###????????###????## #????? | | ??## #### ### ##???????????????## #????? | | ???##???###### ## #????????????????## ##????? | | ?????????????## ##????????????????# #?????? | | ??????????????# #????????????????# #?????? | | ??????????????## #????????????????# #?????? | | ???????????????### ####?????????????# #??###? | | ?????????????????### ##????????????# ##?# ## | | ???????????????????## ##??######???# ### ## | | ????????????????? ??## ##?# ##??## ## | | ?????????????????? ?### #??# #### | | ??????????????????? # # ##?# ## | | ?????????????????? ## ### | | ?????????????????##? ?# ### ## | | ????????????????????# ?## #?#### ### | | ????????????????????# ??## #### #????###?? | | ????????????????????## #### #??####????????? | | ????????????????????# # # ## #??????????????? | | ????????????????????## ##? #??????????????? | | ?????????????????# ## R #??#??????????????? | | ?????????????????# !## ##?????????????????? | | ?????????????????## =@& #### #????????????? | | ??????????????????# ;]&## #????????????? | | ??????????????????# #### ##????????????? | | ??????????????????## ????# "[ ##?????????????? | | ???????????????????##????# "[" #??????????????? | | ????????????????????????# """ #?????????????? | | ????????????????????????# " %#?????????????? | | ???????????????????????? " ""% #?????????????? | | ??????????????????????? "" ##" ##?????????????? | | ??????????????????????" "" #??" ##??????????????? | | ?????????????????????#"""" ???# #???????????????? | | ?????????????????????##?? "???? ##???????????????? | | ?????????????????????????""???? ????????????????? | | ???????????????????????????????? ????????????????? | | ???????????????????????????????? ????????????????? | | ?????????????????????????????????????????????????? | | ?????????????????????????????????????????????????? | | ?????????????????????????????????????????????????? | | ?????????????????????????????????????????????????? | | ?????????????????????????????????????????????????? | | ?????????????????????????????????????????????????? | | ?????????????????????????????????????????????????? | | ?????????????????????????????????????????????????? | | ?????????????????????????????????????????????????? | | ?????????????????????????????????????????????????? | +----------------------------------------------------+ Best States ------------- Heat Dissipation 25 Energy Generation 10 Energy Capacity 250 Matter Stores 300 Matter Capacity 300 Sight Range 16 Terrain Scan Density 10 Armor Coverage 150 Evasion (%) 40 Recoil Reduction 2 Authchip Count 1 Item Schematics ----------------- None Robot Schematics ------------------ None Fabricated ------------ Nothing Repaired ---------- Nothing Studied --------- None Alien Tech Used ----------------- None Achievements -------------- Art Critic Challenges ------------ None Game ------ Seed BraceGunLoader Manual? 0 Play Time 00:14:13 Cumulative 52.8 hours Start 2026.07.17 @ 17:34:44 End 2026.07.17 @ 17:43:28 Sessions 1 Manual Loads 0 Difficulty Rogue Special Mode None Game No. 232 Rogue 187 Adventurer 45 Explorer 0 Win Type - Total 1 Types 1/0/0/0/0/0/0/0/0/0 Lore% 63 Gallery% 42 Achievement% 38 Wizard Run 0 Options --------- Layout 1 ASCII 0 Keyboard 0 Movement Numpad Keybinds 0 Fullscreen 1 Font 24/Smallcaps Map View 50x35 Zoom Use 0% Tactical HUD 1 Map Filters NONE Filters NONE Steam 1 RUN: b0c4a5cb-dd84-45fc-8fd2-b8bfb390fdcb